bitfinex-derivatives/quotes_SOLF0:USTF0_20250630
["timestamp","ask_amount","ask_price","bid_price","bid_amount"]
[1751259112287,5.2856,151.31,151.29,5.50288137]
[1751259112590,5.2856,151.31,151.28,35.00729376]
[1751259113383,5.2856,151.31,151.28,40.29369376]
[1751259113783,5.2856,151.31,151.29,6.65805376]
[1751259113991,5.2856,151.31,151.3,6.65805376]
[1751259116697,5.2856,151.31,151.29,1.96729376]
[1751259120499,5.2856,151.31,151.28,38.3264]
[1751259120500,5.2856,151.31,151.28,40.29369376]
[1751259120699,5.2856,151.31,151.29,5.49592068]
[1751259120900,5.2856,151.31,151.28,40.29369376]
[1751259121201,5.2856,151.31,151.29,5.49592068]
[1751259121494,340.9221,151.35,151.3,1.96729376]
[1751259121695,1.96729376,151.32,151.28,33.04]
[1751259121893,1.96729376,151.32,151.29,5.49144137]
[1751259122089,1.96729376,151.32,151.28,35.00729376]
[1751259122289,5.2852,151.32,151.29,5.49144137]
[1751259122496,5.2852,151.32,151.28,35.00729376]
[1751259122697,5.2852,151.32,151.29,7.45881654]
[1751259122896,7.25199376,151.33,151.3,7.45867639]
[1751259123094,1.96729376,151.33,151.3,1.96729376]
[1751259123297,1.96729376,151.33,151.29,7.25309376]
[1751259123499,1.96729376,151.33,151.3,5.4914845]
[1751259123703,5.2852,151.32,151.29,7.25309376]
[1751259123906,5.2852,151.32,151.3,5.4914845]
[1751259124109,5.2852,151.32,151.29,7.25309376]
[1751259124298,5.2852,151.32,151.3,5.49173984]
[1751259124501,5.2852,151.32,151.29,7.25309376]
[1751259124800,5.2852,151.32,151.3,5.4916195]
[1751259125002,5.2852,151.32,151.29,7.25309376]
[1751259125203,5.2852,151.32,151.3,5.4916195]
[1751259125407,5.2852,151.32,151.29,7.25309376]
[1751259125605,5.2852,151.32,151.3,5.48730029]
[1751259125805,5.2852,151.32,151.29,7.25309376]
[1751259126098,5.2852,151.32,151.3,5.48730029]
[1751259126303,1.96729376,151.33,151.29,1.96729376]
[1751259127406,5.2853,151.32,151.29,1.96729376]
[1751259127806,1.96729376,151.31,151.28,33.04]
[1751259128007,1.96729376,151.31,151.29,5.4878373]
[1751259128303,5.2859,151.3,151.28,33.04]
[1751259128504,5.2859,151.3,151.29,5.48848038]
[1751259129802,7.25279376,151.31,151.29,5.48848038]
[1751259130004,7.25279376,151.31,151.28,33.04]
[1751259130202,5.2857,151.3,151.29,5.48904733]
[1751259131309,5.2855,151.31,151.29,5.48904733]
[1751259131511,5.2855,151.31,151.28,40.29369376]
[1751259131812,5.2855,151.31,151.29,5.49047194]
[1751259132110,5.2855,151.31,151.28,40.29369376]
[1751259132311,5.2855,151.31,151.29,5.49066222]
[1751259132507,5.2855,151.31,151.28,40.29369376]
[1751259132704,5.2855,151.31,151.29,5.49583509]
[1751259132903,5.2855,151.31,151.28,40.29369376]
[1751259133108,5.2855,151.31,151.29,5.49583509]
[1751259133308,5.2855,151.31,151.28,40.29369376]
[1751259133511,5.2855,151.31,151.29,5.49682541]
[1751259133705,5.2855,151.31,151.28,40.29369376]
[1751259133907,5.2855,151.31,151.29,5.49682541]
[1751259134111,5.2855,151.31,151.28,40.29369376]
[1751259134312,5.2855,151.31,151.29,5.49703096]
[1751259134507,5.2855,151.31,151.28,40.29369376]
[1751259134703,5.2855,151.31,151.29,5.49794799]
[1751259134912,5.2855,151.31,151.28,40.29369376]
[1751259135108,1.96729376,151.32,151.29,5.49794799]
[1751259135412,1.96729376,151.32,151.28,35.00729376]
[1751259135612,5.2856,151.31,151.29,5.50259801]
[1751259135802,5.2856,151.31,151.28,35.00729376]
[1751259136004,5.2856,151.31,151.29,5.50259801]
[1751259136205,5.2856,151.31,151.28,35.00729376]
[1751259136406,5.2856,151.31,151.29,5.50372672]
[1751259136609,5.2856,151.31,151.3,5.50372672]
[1751259137217,7.25289376,151.31,151.3,5.50372672]
[1751259140813,5.2847,151.33,151.3,5.50372672]
[1751259141115,1.96729376,151.33,151.29,5.2859]
[1751259141318,1.96729376,151.33,151.3,5.51498341]
[1751259141518,1.96729376,151.33,151.31,12.19183539]
[1751259141820,7.25227857,151.33,151.32,6.67685198]
[1751259143817,5.2846,151.33,151.32,6.67685198]
[1751259144118,7.25227857,151.33,151.32,6.67685198]
[1751259144520,7.25227857,151.33,151.32,12.19756085]
[1751259146221,7.25227857,151.33,151.32,12.20467668]
[1751259151219,7.25227857,151.33,151.32,5.52070887]
[1751259152026,7.25222142,151.33,151.32,5.52070887]
[1751259153821,5.2846,151.33,151.32,5.52070887]
[1751259156028,7.25222142,151.33,151.32,5.52070887]
[1751259157133,5.2846,151.33,151.32,5.52070887]
[1751259157618,216.2843,151.34,151.32,40.44833029]
[1751259157824,216.2843,151.34,151.33,5.52070887]
[1751259158028,1.96762142,151.38,151.33,7.48833029]
[1751259158228,340.58762142,151.39,151.35,1.96762142]
[1751259158426,340.58762142,151.39,151.36,5.51390539]
[1751259159720,176.53601316,151.37,151.36,5.51390539]
[1751259160126,5.2829,151.38,151.36,40.44152681]
[1751259160321,211.0,151.39,151.37,7.48152681]
[1751259160528,5.2821,151.41,151.38,1.96762142]
[1751259161025,5.2821,151.41,151.39,7.47376543]
[1751259161232,5.2821,151.41,151.39,1.96762142]
[1751259161931,5.2821,151.41,151.38,1.96762142]
[1751259162828,5.2823,151.4,151.38,1.96762142]
[1751259165634,5.2826,151.39,151.38,1.96762142]
[1751259166231,5.283,151.38,151.36,32.96]
[1751259166425,5.283,151.38,151.36,34.92762142]
[1751259166935,5.283,151.38,151.36,32.96]
[1751259168535,5.2829,151.38,151.36,32.96]
[1751259168733,1.96762142,151.38,151.36,32.96]
[1751259168937,1.96762142,151.37,151.36,32.96]
[1751259169936,3.07256732,151.39,151.36,32.96]
[1751259170537,5.2833,151.37,151.36,32.96]
[1751259173442,5.283,151.38,151.36,32.96]
[1751259177647,5.283,151.38,151.34,7.6657]
[1751259177847,5.283,151.38,151.35,32.9]
[1751259178248,5.283,151.38,151.34,7.6657]
[1751259178548,5.283,151.38,151.35,32.9]
[1751259180850,5.2827,151.39,151.35,38.1837]
[1751259181753,5.2827,151.39,151.36,5.2836]
[1751259184454,5.283,151.38,151.35,38.1838]
[1751259185353,5.2834,151.37,151.35,32.9]
[1751259186451,5.2831,151.38,151.35,38.184]
[1751259189354,5.2831,151.38,151.36,32.9]
[1751259190653,211.0,151.42,151.37,1.96596329]
[1751259190654,1.96596329,151.41,151.37,1.96596329]
[1751259191655,5.2826,151.39,151.37,1.96596329]
[1751259191856,5.2826,151.39,151.36,40.14936329]
[1751259204370,5.2826,151.39,151.36,46.33141433]
[1751259206670,5.2826,151.39,151.36,44.36545104]
[1751259206871,1.96596329,151.38,151.36,39.08205104]
[1751259207070,1.96596329,151.38,151.36,32.9]
[1751259207572,211.0,151.42,151.36,32.9]
[1751259207775,1.96596329,151.38,151.36,32.9]
[1751259208282,5.2833,151.37,151.36,32.9]
[1751259220982,7.24896329,151.38,151.36,32.9]
[1751259221182,5.283,151.38,151.36,32.9]
[1751259223879,1.96596329,151.38,151.36,32.9]
[1751259224783,7.24906329,151.38,151.36,32.9]
[1751259225383,5.2831,151.38,151.36,32.9]
[1751259226486,7.24886329,151.39,151.36,38.1836]
[1751259227784,5.2829,151.39,151.36,40.14956329]
[1751259229090,5.2829,151.39,151.36,38.1836]
[1751259229486,5.2829,151.39,151.36,40.14956329]
[1751259234891,211.0,151.41,151.38,1.96596329]
[1751259235095,1.96596329,151.39,151.37,6.18205104]
[1751259235397,1.96596329,151.39,151.36,39.08205104]
[1751259236203,7.24876329,151.39,151.36,44.36545104]
[1751259239402,7.24876329,151.39,151.36,46.33141433]
[1751259239603,5.2828,151.39,151.36,46.33141433]
[1751259242204,5.2826,151.39,151.36,46.33141433]
[1751259245807,7.24856329,151.39,151.36,46.33141433]
[1751259246310,7.24856329,151.39,151.36,40.14936329]
[1751259246807,5.2826,151.39,151.36,40.14936329]
[1751259248210,7.24826329,151.4,151.37,5.2833]
[1751259248410,211.0,151.41,151.37,5.2833]
[1751259248411,212.96596329,151.41,151.37,1.96596329]
[1751259249305,5.2824,151.4,151.37,7.24906329]
[1751259252112,5.2824,151.4,151.37,1.96596329]
[1751259252905,5.2826,151.39,151.37,1.96596329]
[1751259253411,5.2826,151.39,151.36,44.36555104]
[1751259253613,5.2826,151.39,151.37,1.96596329]
[1751259256117,5.2826,151.39,151.37,8.14801433]
[1751259259620,5.2826,151.39,151.37,1.96596329]
[1751259260820,5.2826,151.39,151.36,46.33151433]
[1751259261622,5.2829,151.38,151.36,46.33151433]
[1751259264925,5.2829,151.38,151.36,44.36555104]
[1751259265124,5.2829,151.38,151.36,46.33151433]
[1751259265826,5.2827,151.39,151.36,46.33151433]
[1751259269532,5.2825,151.4,151.37,5.2833]
[1751259269828,212.96596329,151.41,151.37,1.96596329]
[1751259270331,5.2829,151.4,151.37,7.24956329]
[1751259273134,5.2829,151.4,151.37,5.2836]
[1751259275331,5.2831,151.39,151.36,46.33164726]
[1751259276537,5.2831,151.39,151.36,46.33537103]
[1751259281337,5.2831,151.39,151.37,6.18577481]
[1751259283335,5.2834,151.38,151.37,6.18577481]
[1751259286138,5.2834,151.38,151.37,38.92577481]
[1751259286336,5.2831,151.39,151.37,38.92577481]
[1751259287431,5.2831,151.39,151.37,40.89147103]
[1751259287738,5.2831,151.39,151.37,40.89141781]
[1751259291645,5.2834,151.38,151.37,38.92577481]
[1751259297245,5.2834,151.38,151.37,32.74]
[1751259299546,7.24963399,151.38,151.37,32.74]
[1751259299745,7.24963399,151.38,151.34,8.24273472]
[1751259299746,1.96623399,151.38,151.34,38.86577481]
[1751259299944,1.96623399,151.37,151.34,38.86577481]
[1751259300948,5.2838,151.37,151.34,40.8320088]
[1751259301149,1.96623399,151.38,151.34,38.86577481]
[1751259301345,1.96623399,151.36,151.34,38.86577481]
[1751259301545,1.96623399,151.36,151.34,32.68]
[1751259301944,5.2844,151.35,151.34,32.68]
[1751259302146,7.25063399,151.35,151.34,32.68]
[1751259303256,5.285,151.34,151.31,37.9658]
[1751259303443,7.25123399,151.34,151.31,5.2858]
[1751259303639,7.25123399,151.34,151.31,37.9858]
[1751259306850,7.25123399,151.34,151.31,32.7]
[1751259307654,5.285,151.34,151.31,32.7]
[1751259307854,7.25123399,151.34,151.31,32.7]
[1751259309855,5.285,151.34,151.31,39.95193399]
[1751259310656,5.285,151.34,151.32,1.96623399]
[1751259312457,5.2851,151.33,151.32,1.96623399]
[1751259312756,1.96623399,151.33,151.31,32.7]
[1751259313959,7.25193399,151.32,151.29,1.96623399]
[1751259314163,7.25193399,151.32,151.28,39.95293399]
[1751259315270,7.25193399,151.32,151.29,1.96623399]
[1751259315467,7.25193399,151.32,151.3,5.4914544]
[1751259315671,7.25193399,151.32,151.29,1.96623399]
[1751259315875,7.25193399,151.32,151.3,5.4914544]
[1751259316075,7.25193399,151.32,151.29,1.96623399]
[1751259316276,7.25193399,151.32,151.3,5.49485832]
[1751259316573,7.25193399,151.32,151.29,1.96623399]
[1751259316770,7.25193399,151.32,151.3,5.49469724]
[1751259316972,7.25193399,151.32,151.29,1.96623399]
[1751259317166,7.25193399,151.32,151.3,5.49469724]
[1751259317364,7.25193399,151.32,151.29,1.96623399]
[1751259317569,7.25193399,151.32,151.3,5.4936119]
[1751259317766,7.25193399,151.32,151.29,1.96623399]
[1751259317975,7.25193399,151.32,151.3,5.49361213]
[1751259318174,7.25193399,151.32,151.31,6.68033559]
[1751259319773,5.2857,151.32,151.31,6.68033559]
[1751259321874,1.96623399,151.33,151.31,6.68033559]
[1751259322080,1.96623399,151.33,151.32,6.68033559]
[1751259322274,212.96623399,151.34,151.32,6.68033559]
[1751259322573,212.96623399,151.34,151.33,6.68033559]
[1751259322774,218.25103399,151.34,151.33,6.68033559]
[1751259323681,216.2848,151.34,151.33,6.68033559]
[1751259325676,218.25103399,151.34,151.33,6.68033559]
[1751259343401,5.2857,151.32,151.28,37.9867]
[1751259343600,127.08,151.31,151.29,7.48031106]
[1751259343798,127.08,151.31,151.3,5.51407707]
[1751259346002,132.3658,151.31,151.3,5.51407707]
[1751259346501,132.366,151.31,151.3,5.52381131]
[1751259346698,134.33223399,151.31,151.3,5.52381131]
[1751259349007,212.96623399,151.34,151.3,7.4900453]
[1751259349206,127.06,151.33,151.31,1.96623399]
[1751259349608,132.3452,151.33,151.31,1.96623399]
[1751259349806,132.3452,151.33,151.32,5.52295537]
[1751259350710,211.0,151.38,151.32,5.52295537]
[1751259350898,1.96623399,151.35,151.31,1.96623399]
[1751259351103,132.3451,151.34,151.32,5.52321758]
[1751259351303,132.3451,151.34,151.33,5.52350701]
[1751259351905,134.31133399,151.34,151.33,5.52350701]
[1751259353508,5.2858,151.31,151.3,32.66]
[1751259353812,5.2858,151.31,151.3,38.18877121]
[1751259354615,127.06,151.32,151.3,38.18877121]
[1751259354616,132.3456,151.32,151.3,38.18877121]
[1751259354806,132.3456,151.32,151.31,5.52877121]
[1751259356212,127.06,151.32,151.31,7.4950052]
[1751259356416,5.2853,151.33,151.31,7.4950052]
[1751259356713,5.2853,151.33,151.32,5.52877121]
[1751259357910,5.2848,151.34,151.32,5.52877121]
[1751259358114,5.2848,151.34,151.33,5.52877121]
[1751259360014,7.25103399,151.34,151.33,5.52877121]
[1751259363212,5.2848,151.34,151.33,5.52877121]
[1751259363412,7.25103399,151.34,151.33,5.52877121]
[1751259365715,5.2848,151.34,151.33,5.52877121]
[1751259368520,7.25103399,151.34,151.33,5.52877121]
[1751259369622,5.2854,151.33,151.3,34.62623399]
[1751259369819,5.2854,151.33,151.31,5.51448863]
[1751259370020,5.2854,151.33,151.32,5.51448863]
[1751259372519,7.25163399,151.33,151.32,5.51448863]
[1751259372921,5.2854,151.33,151.32,5.51448863]
[1751259377422,7.25163399,151.33,151.32,5.51448863]
[1751259387434,5.2854,151.33,151.32,5.51448863]
[1751259393129,7.25163399,151.33,151.32,5.51448863]
[1751259395642,5.2854,151.33,151.32,5.51448863]
[1751259405643,7.25297008,151.33,151.32,5.51448863]
[1751259413652,7.25325309,151.33,151.32,5.51448863]
[1751259417346,134.21325309,151.33,151.32,5.51448863]
[1751259420053,7.25325309,151.33,151.32,5.51448863]
[1751259420250,134.19325309,151.33,151.32,5.51448863]
[1751259420662,7.25435309,151.29,151.28,32.58]
[1751259421849,5.2863,151.3,151.28,32.58]
[1751259422145,1.96785309,151.3,151.28,32.58]
[1751259422349,1.96785309,151.29,151.28,32.58]
[1751259423453,5.2865,151.29,151.28,32.58]
[1751259423658,1.96785309,151.31,151.28,32.58]
[1751259424255,5.2864,151.3,151.28,32.58]
[1751259428360,5.2859,151.31,151.28,34.54785309]
[1751259428759,5.2859,151.31,151.28,40.7336279]
[1751259429355,5.2859,151.31,151.28,46.0203279]
[1751259433464,7.25375309,151.31,151.28,46.0203279]
[1751259433767,7.25375309,151.31,151.28,39.83455309]
[1751259434262,1.96785309,151.29,151.27,6.18577481]
[1751259434564,1.96785309,151.28,151.24,38.74577481]
[1751259434759,1.96785309,151.26,151.24,32.56]
[1751259439463,1.96785309,151.25,151.24,32.56]
[1751259440362,7.25575309,151.25,151.24,32.56]
[1751259440766,5.2884,151.24,151.21,40.0752]
[1751259440966,211.0,151.28,151.22,5.49619706]
[1751259441270,1.96785309,151.23,151.21,32.56]
[1751259441470,1.96785309,151.22,151.21,32.56]
[1751259442967,1.96785309,151.22,151.16,6.18577481]
[1751259443163,1.96785309,151.18,151.13,32.56]
[1751259443370,1.96785309,151.16,151.13,32.56]
[1751259443569,126.94,151.19,151.14,5.2916]
[1751259443871,126.94,151.19,151.13,35.64044544]
[1751259444167,132.2301,151.19,151.14,10.78006559]
[1751259444370,132.2301,151.19,151.14,5.2916]
[1751259445370,132.2301,151.19,151.15,5.2914]
[1751259445768,5.2904,151.18,151.14,5.2917]
[1751259446371,126.94,151.19,151.13,35.64044544]
[1751259446563,126.94,151.19,151.14,5.52258683]
[1751259446760,126.94,151.19,151.13,32.56]
[1751259446964,126.94,151.19,151.14,5.52258683]
[1751259447161,126.94,151.19,151.13,35.64044544]
[1751259447365,126.94,151.19,151.15,5.2913]
[1751259448076,132.2301,151.19,151.15,5.2913]
[1751259449878,132.2301,151.19,151.13,35.64044544]
[1751259449879,132.2301,151.19,151.16,5.291]
[1751259450175,126.94,151.19,151.13,35.64044544]
[1751259451770,5.2908,151.17,151.14,5.2917]
[1751259452173,5.2908,151.17,151.13,37.8521]
[1751259452671,3.08044544,151.18,151.13,32.56]
[1751259452877,3.08044544,151.16,151.13,32.56]
[1751259453276,5.2914,151.15,151.13,32.56]
[1751259453578,127.08,151.14,151.07,6.7009]
[1751259453779,130.16044544,151.14,151.07,6.7009]
[1751259453978,211.0,151.15,151.03,3.08044544]
[1751259454175,3.08044544,151.15,151.07,3.08044544]
[1751259454474,179.24766284,151.16,151.07,32.6]
[1751259454675,3.08044544,151.17,151.08,3.08044544]
[1751259454882,130.80044544,151.17,151.08,5.28524544]
[1751259455180,130.80044544,151.17,151.08,9.79474544]
[1751259455479,3.08044544,151.13,151.08,39.3143]
[1751259455876,5.2932,151.1,151.08,39.3143]
[1751259456280,3.08044544,151.13,151.08,39.3143]
[1751259456580,5.2933,151.1,151.08,39.3143]
[1751259457080,5.293,151.11,151.08,39.3143]
[1751259457877,5.293,151.11,151.08,34.8048]
[1751259459178,5.2933,151.1,151.08,32.6]
[1751259459782,5.293,151.11,151.08,32.6]
[1751259460683,3.08044544,151.13,151.04,6.6096]
[1751259460885,3.08044544,151.09,151.05,32.6]
[1751259461283,5.2946,151.06,151.05,32.6]
[1751259463081,5.2943,151.07,151.05,32.6]
[1751259463282,128.02,151.11,151.03,32.62]
[1751259463483,131.10044544,151.11,151.04,3.08044544]
[1751259463682,5.2936,151.09,151.05,5.2949]
[1751259463883,2.2539,151.16,151.08,3.08044544]
[1751259464077,3.08044544,151.15,151.09,32.62]
[1751259465985,3.08044544,151.15,151.04,32.62]
[1751259465986,3.08044544,151.11,151.04,32.62]
[1751259466178,5.2938,151.09,151.05,37.9148]
[1751259466484,3.08044544,151.11,151.05,32.62]
[1751259466684,8.37424544,151.09,151.05,32.62]
[1751259466884,3.08044544,151.1,151.05,32.62]
[1751259467479,5.2945,151.07,151.05,32.62]
[1751259468587,5.2941,151.08,151.05,32.62]
[1751259469088,5.2936,151.09,151.05,37.9147]
[1751259470383,214.08044544,151.11,151.05,32.62]
[1751259472385,5.2939,151.09,151.05,37.9149]
[1751259473686,339.58,151.11,151.06,5.2944]
[1751259473886,339.58,151.11,151.05,35.70044544]
[1751259474491,339.58,151.11,151.05,32.62]
[1751259474892,342.66399984,151.11,151.05,32.62]
[1751259475093,5.2938,151.09,151.05,37.9148]
[1751259476397,342.66399984,151.11,151.05,35.70399984]
[1751259476696,339.58,151.11,151.05,35.70399984]
[1751259476898,216.2931,151.11,151.07,5.294]
[1751259477097,211.0,151.11,151.07,5.294]
[1751259477489,211.0,151.11,151.08,5.2938]
[1751259477691,211.0,151.11,151.09,32.62]
[1751259477890,214.08330458,151.15,151.09,32.62]
[1751259478092,5.2922,151.13,151.09,40.99660458]
[1751259479190,5.2925,151.12,151.09,40.99660458]
[1751259479602,5.2925,151.12,151.09,32.62]
[1751259480296,5.2923,151.13,151.09,37.9135]
[1751259480601,5.2923,151.13,151.09,32.62]
[1751259480798,5.2923,151.13,151.1,5.55471509]
[1751259481100,5.2923,151.13,151.09,32.62]
[1751259481300,5.2923,151.13,151.1,5.53957418]
[1751259481493,5.2923,151.13,151.1,5.2932]
[1751259481691,5.2923,151.13,151.09,32.62]
[1751259481893,5.2923,151.13,151.1,5.54029072]
[1751259482095,5.2923,151.13,151.09,37.9133]
[1751259482303,5.2923,151.13,151.1,5.54349701]
[1751259482501,5.2923,151.13,151.09,37.9133]
[1751259482701,5.2923,151.13,151.1,5.5441779]
[1751259482902,5.2923,151.13,151.1,5.2932]
[1751259483099,5.2923,151.13,151.11,5.54729637]
[1751259483402,5.2923,151.13,151.1,5.2932]
[1751259483603,5.2923,151.13,151.11,5.54793723]
[1751259483805,5.2923,151.13,151.1,5.2932]
[1751259484003,5.2923,151.13,151.11,5.54793723]
[1751259484205,5.2923,151.13,151.1,5.2932]
[1751259484406,5.2923,151.13,151.11,5.55217926]
[1751259484605,5.2923,151.13,151.1,5.2932]
[1751259484806,5.2925,151.12,151.09,32.62]
[1751259485100,5.2925,151.12,151.1,5.55232062]
[1751259485300,5.2925,151.12,151.09,32.62]
[1751259485507,5.2925,151.12,151.1,5.5564573]
[1751259485805,5.2925,151.12,151.09,32.62]
[1751259486107,5.2925,151.12,151.1,5.5564573]
[1751259486306,5.2928,151.11,151.07,11.47977481]
[1751259486507,5.2928,151.11,151.08,38.93532426]
[1751259486701,5.2928,151.11,151.09,5.55532426]
[1751259487004,5.2928,151.11,151.1,5.55532426]
[1751259487204,211.0,151.15,151.1,5.55532426]
[1751259487406,214.08330458,151.15,151.11,5.55532426]
[1751259487708,214.08330458,151.15,151.09,5.2935]
[1751259487906,5.2924,151.13,151.1,5.55830956]
[1751259488206,214.08330458,151.15,151.11,5.55830956]
[1751259488404,214.08330458,151.15,151.12,5.55830956]
[1751259488606,214.08330458,151.15,151.09,5.2935]
[1751259488807,214.08330458,151.15,151.1,5.56103218]
[1751259489107,214.08330458,151.15,151.11,5.56103218]
[1751259489296,214.08330458,151.15,151.12,5.56201152]
[1751259489496,5.2924,151.13,151.09,5.2935]
[1751259489709,5.2924,151.13,151.1,5.56201152]
[1751259489907,5.2924,151.13,151.11,5.56201152]
[1751259490101,5.2924,151.13,151.09,5.2935]
[1751259490301,5.2924,151.13,151.1,5.5626675]
[1751259490502,5.2919,151.14,151.11,5.5626675]
[1751259490703,5.2919,151.14,151.12,5.5626675]
[1751259490902,5.2919,151.14,151.1,5.2931]
[1751259491102,5.2919,151.14,151.11,5.56298417]
[1751259491306,5.2919,151.14,151.12,5.56298417]
[1751259491508,5.2919,151.14,151.1,5.2931]
[1751259491809,5.2919,151.14,151.11,5.56854954]
[1751259492011,5.2919,151.14,151.12,5.56854954]
[1751259492209,5.2919,151.14,151.13,5.56854954]
[1751259496115,216.2916,151.15,151.13,5.56854954]
[1751259496302,211.0,151.15,151.12,33.38]
[1751259496507,211.0,151.15,151.13,5.56662241]
[1751259496708,211.0,151.15,151.12,33.38]
[1751259497012,8.37448142,151.14,151.13,5.56662143]
[1751259497402,5.2932,151.11,151.09,33.38]
[1751259497617,5.2932,151.11,151.1,5.56916043]
[1751259500820,8.37612451,151.11,151.1,5.56916043]
[1751259501016,5.2937,151.09,151.07,33.38]
[1751259501316,5.2937,151.09,151.08,5.57097496]
[1751259501711,5.2933,151.1,151.08,5.57097496]
[1751259501911,5.2933,151.1,151.09,5.57097496]
[1751259505118,5.293,151.11,151.09,5.57097496]
[1751259505318,5.293,151.11,151.1,5.57097496]
[1751259506120,5.2925,151.12,151.1,5.57097496]
[1751259506418,5.2925,151.12,151.08,5.2939]
[1751259506718,5.2925,151.12,151.09,5.5888884]
[1751259506919,5.2928,151.11,151.1,5.5888884]
[1751259508319,5.2926,151.12,151.1,5.5888884]
[1751259508616,5.2926,151.12,151.11,5.5888884]
[1751259508813,216.2923,151.13,151.11,5.5888884]
[1751259509016,5.2923,151.13,151.12,5.5888884]
[1751259510418,5.2919,151.14,151.12,5.5888884]
[1751259510619,5.2919,151.14,151.13,5.5888884]
[1751259511119,131.60292451,151.14,151.11,33.38]
[1751259511319,131.60292451,151.14,151.12,5.59035415]
[1751259511514,131.60292451,151.14,151.11,33.38]
[1751259511715,5.2922,151.13,151.12,5.58135223]
[1751259512920,8.37529271,151.13,151.12,5.58135223]
[1751259513922,128.52,151.14,151.07,4.6855]
[1751259513923,128.52,151.14,151.07,6.18577481]
[1751259514226,3.08309271,151.13,151.07,6.18577481]
[1751259514425,5.2932,151.11,151.07,11.47977481]
[1751259514920,3.08309271,151.13,151.07,11.47977481]
[1751259515122,5.2934,151.1,151.07,11.47977481]
[1751259515823,5.2934,151.1,151.08,6.18577481]
[1751259517623,3.08309271,151.13,151.08,11.47957481]
[1751259517624,5.293,151.11,151.08,11.47957481]
[1751259519221,5.293,151.11,151.08,6.18577481]
[1751259519419,5.2933,151.1,151.08,6.18577481]
[1751259520626,5.2933,151.1,151.08,39.68577481]
[1751259523928,5.293,151.11,151.08,39.68577481]
[1751259524929,5.2932,151.1,151.08,39.68577481]
[1751259525928,5.2932,151.1,151.09,5.51721255]
[1751259527830,211.0,151.09,151.01,8.24273472]
[1751259528031,3.08529516,151.06,151.01,8.24273472]
[1751259528632,5.2963,151.02,150.98,50.12522988]
[1751259528829,5.2963,151.02,150.98,41.88249516]
[1751259529433,5.2965,151.01,150.98,36.58529516]
[1751259529629,3.08529516,151.05,150.98,36.58529516]
[1751259530036,5.2957,151.03,150.99,5.2969]
[1751259530222,3.08529516,151.05,150.98,36.58529516]
[1751259530422,211.0,151.06,151.0,3.08529516]
[1751259530725,216.2948,151.06,151.02,5.2958]
[1751259530925,5.2948,151.06,151.03,33.5]
[1751259531935,5.2948,151.06,151.03,38.7957]
[1751259533432,2.3268,151.09,151.03,38.7957]
[1751259533637,3.08529516,151.09,151.04,5.2952]
[1751259534438,214.08529516,151.09,151.04,5.2952]
[1751259534633,5.2943,151.07,151.04,5.2952]
[1751259534829,214.08529516,151.09,151.03,33.5]
[1751259535238,211.0,151.09,151.03,33.5]
[1751259535437,3.08529516,151.08,151.03,33.5]
[1751259535829,5.295,151.05,151.03,33.5]
[1751259536536,5.2947,151.06,151.03,33.5]
[1751259537944,5.2947,151.06,151.03,38.7956]
[1751259538241,5.2944,151.07,151.03,38.7956]
[1751259539044,3.08529516,151.04,150.99,8.24273472]
[1751259539239,3.08529516,151.02,150.95,3.08529516]
[1751259539537,5.297,151.0,150.95,8.38349516]
[1751259539938,133.3131,151.05,150.95,3.08529516]
[1751259540132,5.2966,151.01,150.95,5.29599516]
[1751259540340,3.08529516,151.03,150.95,5.29599516]
[1751259540743,5.2968,151.0,150.96,5.2979]
[1751259540943,5.2968,151.0,150.97,33.52]
[1751259541139,3.08529516,151.03,150.97,33.52]
[1751259541337,5.2965,151.01,150.97,38.8176]
[1751259542239,3.08529516,151.01,150.97,33.52]
[1751259542746,5.2974,150.98,150.97,33.52]
[1751259545248,5.2971,150.99,150.97,33.52]
[1751259546247,8.38219516,151.0,150.97,33.52]
[1751259547739,5.2971,150.99,150.97,33.52]
[1751259547945,3.08529516,151.0,150.97,33.52]
[1751259549142,8.38219516,151.0,150.97,33.52]